Cogmind - Beta 13 @@@ ROGUE MODE // 2024.04.07 @ 16:48:34 Player: Copyrite Result: Destroyed by LG-TMR(R) with Subdweller Beam Cannon Performance ------------- Evolutions (0) 0 Regions Visited (3) 600 Robots Destroyed (27) 135 Value Destroyed (686) 686 Prototype IDs (0) 0 Alien Tech Used (0) 0 Bonus (60) 60 TOTAL SCORE: 1481 Bonus ------- Follower Combat Kills 60 Cogmind --------- Core Integrity 0/250 Matter 300/300 Energy 250/250 System Corruption 0% Temperature Cool (9) Movement Walking (260) Ox2 Location -10/Subcaves Parts ------- > --- POWER (1) -------- Ion Engine > --- PROPULSION (2) --- Aluminum Leg Carbon-fiber Leg > --- UTILITY (2) ------ High-capacity Storage Unit Signal Interpreter > --- WEAPON (2) ------- Light Cannon Makeshift Axe > --- INVENTORY (20) --- Ion Engine Spiked Treads Improved Heat Sink High-capacity Matter Pod (200) Weight Redist. System Targeting Computer EM Pulse Gun Riot Gun Beamcaster Dirty Datajack (20) Flamer Peak State ------------ > --- POWER ------------ Subdweller Power Source > --- PROPULSION ------- Aluminum Leg Carbon-fiber Leg > --- UTILITY ---------- High-capacity Storage Unit Signal Interpreter > --- WEAPON ----------- Beamcaster Makeshift Axe > --- INVENTORY -------- Ion Engine Spiked Treads Improved Heat Sink High-capacity Matter Pod Weight Redist. System Targeting Computer EM Pulse Gun Light Assault Rifle Light Cannon Dirty Datajack Flamer [Rating: 19] Favorites ----------- Power Light Nuclear Core Engine Ion Engine Power Core Light Nuclear Core Propulsion Aluminum Leg Treads Light Treads Leg Aluminum Leg Utility Signal Interpreter Storage High-capacity Storage Unit Processor Signal Interpreter Weapon Grenade Launcher Energy Gun Beamcaster Ballistic Gun Assault Rifle Ballistic Cannon Light Cannon Launcher Grenade Launcher Special Weapon Flamer Slashing Weapon Makeshift Axe Build | -11 -10 -10 -10 ------- Run | Yrd Mat Min Sub Slots Evolved . | . . . . Power . | . . . . Propulsion . | . . . . Utility . | . . . . Weapon . | . . . . Parts Attached 31 | 8 11 . 12 Power 6 | 1 2 . 3 Engine 5 | 1 1 . 3 Core 1 | . 1 . . Reactor . | . . . . Propulsion 9 | 5 2 . 2 Treads 2 | 2 . . . Leg 7 | 3 2 . 2 Wheel . | . . . . Hover . | . . . . Flight . | . . . . Utility 4 | 1 3 . . Device . | . . . . Storage 3 | 1 2 . . Processor 1 | . 1 . . Hackware . | . . . . Protection . | . . . . Artifact . | . . . . Weapon 12 | 1 4 . 7 Energy Gun 2 | . . . 2 Energy Cannon . | . . . . Ballistic Gun 3 | 1 1 . 1 Ballistic Cannon 3 | . 1 . 2 Launcher 2 | . 2 . . Special Weapon 1 | . . . 1 Impact Weapon . | . . . . Slashing Weapon 1 | . . . 1 Piercing Weapon . | . . . . Special Melee Weapon . | . . . . Unidentified Prototypes . | . . . . Parts Lost 6 | . 1 . 5 Power 1 | . . . 1 Propulsion 3 | . 1 . 2 Utility . | . . . . Weapon 2 | . . . 2 Highest Loss Streak 4 | . 1 . 4 To Critical Strikes 2 | . . . 2 Average Slot Usage (%) 97 | . 94 100 98 Engine 7 | . 9 . 9 Core 6 | . 4 14 4 Treads 6 | . 17 . . Leg 21 | . 9 28 27 Storage 13 | . 12 14 14 Processor 12 | . 10 14 14 Energy Gun 1 | . . . 4 Ballistic Gun 4 | . 11 . 1 Ballistic Cannon 7 | . 2 14 7 Launcher 9 | . 13 14 4 Slashing Weapon 3 | . . . 8 Naked Turns . | . . . . Heaviest Build 90 | 9 90 51 53 Greatest Support 40 | 40 40 20 25 Greatest Overweight (x) 4 | 2 2 2 4 Average Overweight (x) 1 | . 1 2 1 Largest Inventory Capacity 25 | 8 25 20 20 Average Capacity 20 | 7 21 20 20 Most Carried 13 | 6 8 8 13 Average Carried 7 | 2 5 8 9 Final Capacity 20 | 8 20 20 20 Final Carried 11 | 5 8 8 11 Class Distribution -------------------- 95% | Mutant 4% | Scavenger-Mutant Dominant Class ---------------- Mutant | -10/Materials Mutant | -10/Mines Mutant | -10/Subcaves Resources | -11 -10 -10 -10 ----------- Run | Yrd Mat Min Sub Matter Collected 1082 | 195 182 11 694 Remotely . | . . . . Salvage Created 824 | . 394 9 421 Parts 58 | . 29 8 21 Haulers Intercepted 1 | . 1 . . Recyclers Shooed . | . . . . Parts Field Recycled . | . . . . Retrieved Matter . | . . . . Parts Self-Destructed 7 | . . . 7 Prevented . | . . . . Kills | -11 -10 -10 -10 ------- Run | Yrd Mat Min Sub Combat Hostiles Destroyed 21 | . 9 3 9 Melee 4 | . . . 4 Guns 9 | . 6 . 3 Cannons 3 | . . 1 2 AOE 5 | . 3 2 . Classes Destroyed 11 | . 7 . 4 Worker 2 | . 2 . . Builder 1 | . 1 . . Hauler 1 | . 1 . . Recycler 1 | . 1 . . Operator 1 | . 1 . . Swarmer 6 | . 3 3 . Grunt 6 | . 6 . . Sentry 1 | . . . 1 Artisan 1 | . . . 1 Cobbler 1 | . . . 1 Subdweller 8 | . . . 8 Best Kill Streak 3 | . 3 3 2 Combat Bots Only 3 | . 3 3 2 Max Kills in Single Turn 2 | . 2 2 1 Gunslinging . | . . . . Exploded 2 | . 2 2 . Melee 1 | . . . 1 Uniques/NPCs Destroyed . | . . . . Combat | -11 -10 -10 -10 -------- Run | Yrd Mat Min Sub Hostile Shots Fired 129 | . 66 5 58 Missed 38 | . 20 . 18 Damage Taken 1382 | . 499 33 850 Core 256 | . 46 . 210 Absorbed by Shields . | . . . . Core Remaining (%) 100 | 100 . . . Volleys Fired 133 | . 72 2 59 Largest 1 | . 1 1 1 Hottest 100 | . 35 35 100 Shots Fired 133 | . 72 2 59 Gun 84 | . 57 . 27 Cannon 43 | . 11 1 31 Launcher 5 | . 4 1 . Special 1 | . . . 1 Kinetic 108 | . 68 1 39 Thermal 20 | . . . 20 Explosive 5 | . 4 1 . Electromagnetic . | . . . . Robot Hit Streak 7 | . 5 2 7 Robot Miss Streak 5 | . 3 . 5 Penetration Max . | . . . . Secondary Targets . | . . . . Shots Hit Robots 87 | . 42 2 43 Core Hits 51 | . 29 4 18 Critical Kills . | . . . . Critical Parts Destroyed . | . . . . Critical Strikes 1 | . 1 . . Blast 1 | . 1 . . Melee Attacks 11 | . . . 11 Impact . | . . . . Slashing 11 | . . . 11 Piercing . | . . . . Sneak Attacks . | . . . . Combat Hostiles . | . . . . Follow-up Attacks . | . . . . Damage Inflicted 1799 | . 860 99 840 Guns 618 | . 427 . 191 Cannons 428 | . 99 19 310 Explosions 412 | . 332 80 . Melee 339 | . . . 339 Ramming 2 | . 2 . . Kinetic 962 | . 526 19 417 Thermal 84 | . . . 84 Explosive 412 | . 332 80 . Electromagnetic . | . . . . Impact . | . . . . Slashing 339 | . . . 339 Piercing . | . . . . Highest Corruption . | . . . . Average Corruption . | . . . . Corruption Purged . | . . . . Corruption Blocked . | . . . . Overload Shots . | . . . . Overflow Damage 15 | . 15 . . Projectiles . | . . . . Explosions 15 | . 15 . . Melee . | . . . . Knockbacks 1 | . 1 . . Impact . | . . . . Kinetic 1 | . 1 . . Secondary . | . . . . Self-Inflicted Damage 37 | . 37 . . Shots 3 | . 3 . . Rammed . | . . . . Targets Rammed 1 | . 1 . . Kicked 1 | . 1 . . Crushed . | . . . . Highest Temperature 283 | . 4 . 283 Average Temperature 115 | . 2 . 158 Received Heat Transfer 594 | . 147 . 447 Siege Activations . | . . . . Robots Corrupted . | . . . . Combat Hostiles . | . . . . Parts Fried . | . . . . Impact Corruptions . | . . . . Robots Melted . | . . . . Combat Hostiles . | . . . . Parts Melted 2 | . . . 2 Heat Transferred 148 | . . . 148 Parts Sabotaged . | . . . . Parts Stolen . | . . . . Parts Stripped . | . . . . Power Chain Reactions . | . . . . Alert | -11 -10 -10 -10 ------- Run | Yrd Mat Min Sub Peak Influence 150 | . 150 77 . Initial . | . . . . Average 40 | . 49 29 . Maximum Alert Level . | . . . . Low Security (%) 100 | 100 100 100 . Level 1 . | . . . . Level 2 . | . . . . Level 3 . | . . . . Level 4 . | . . . . Level 5 . | . . . . High Security . | . . . . Max Security . | . . . . Squads Dispatched 1 | . 1 . . Investigation . | . . . . Extermination . | . . . . Reinforcement 1 | . 1 . . Assault . | . . . . Garrison . | . . . . Intercept . | . . . . Searches Triggered . | . . . . Construction Impeded . | . . . . Haulers Reinforced . | . . . . Active Scanning Responses . | . . . . Cargo Convoy Interrupts . | . . . . Stealth | -11 -10 -10 -10 --------- Run | Yrd Mat Min Sub Distress Signals 1 | . 1 . . Communications Jammed . | . . . . Distress Signals . | . . . . Times Spotted 41 | . 26 3 12 Peak Tracking Total 5 | . 5 3 2 Tactical Retreats . | . . . . Traps | -11 -10 -10 -10 ------- Run | Yrd Mat Min Sub Traps Triggered . | . . . . Indirectly . | . . . . Trap Hack Attempts . | . . . . Triggered . | . . . . Disarmed . | . . . . Reprogrammed . | . . . . Reused . | . . . . Traps Extracted . | . . . . Installed . | . . . . Triggered . | . . . . Machines | -11 -10 -10 -10 ---------- Run | Yrd Mat Min Sub Machines Disabled . | . . . . Max in Single Turn . | . . . . Machines Repaired . | . . . . Machines Dismantled . | . . . . Machines Sabotaged . | . . . . Overloaded Fab Kills . | . . . . Hacking | -11 -10 -10 -10 --------- Run | Yrd Mat Min Sub Machines Accessed 4 | . 4 . . Terminals 3 | . 3 . . Fabricators . | . . . . Repair Stations . | . . . . Recycling Units 1 | . 1 . . Scanalyzers . | . . . . Garrison Access . | . . . . Total Hacks 9 | . 9 . . Successful 4 | . 4 . . Failed 5 | . 5 . . Catastrophic 1 | . 1 . . Database Lockouts . | . . . . Manual 6 | . 6 . . Terminals 6 | . 6 . . Fabricators . | . . . . Repair Stations . | . . . . Recycling Units 3 | . 3 . . Scanalyzers . | . . . . Garrison Access . | . . . . Terminal Hacks 1 | . 1 . . Locate Traps 1 | . 1 . . Fabricator Hacks . | . . . . Repair Station Hacks . | . . . . Recycling Unit Hacks 1 | . 1 . . Retrieve Components 1 | . 1 . . Scanalyzer . | . . . . Garrison Access Hacks . | . . . . Unauthorized Hacks 2 | . 2 . . Terminals 2 | . 2 . . Botnet 2 | . 2 . . Fabricators . | . . . . Repair Stations . | . . . . Recycling Units . | . . . . Scanalyzers . | . . . . Garrison Access . | . . . . Data Cores Recovered . | . . . . Used . | . . . . Hacking Detections 2 | . 2 . . Full Trace Events . | . . . . Feedback Events . | . . . . Feedback Blocked . | . . . . Robot Schematics Acquired . | . . . . Robots Built . | . . . . Authchips . | . . . . Time . | . . . . Total Robot Build Rating . | . . . . Part Schematics Acquired . | . . . . Parts Built . | . . . . Authchips . | . . . . Time . | . . . . Total Part Build Rating . | . . . . Parts Repaired . | . . . . Time . | . . . . Parts Recycled . | . . . . Recycled Matter . | . . . . Retrieved Matter . | . . . . Retrieved Components 9 | . 9 . . Parts Scanalyzed . | . . . . Part Schematics Acquired . | . . . . Parts Damaged . | . . . . Bothacking | -11 -10 -10 -10 ------------ Run | Yrd Mat Min Sub Used RIF Installer . | . . . . Robots Hacked . | . . . . Non-combat . | . . . . Combat . | . . . . Robot Hacks Applied . | . . . . Relay Couplers Released . | . . . . Fabnet Peak Effective % . | . . . . Robots Rewired . | . . . . Allies Hacked . | . . . . Hacks Repelled . | . . . . Allies | -11 -10 -10 -10 -------- Run | Yrd Mat Min Sub Total Allies 2 | . . 2 . Largest Group 2 | . . 2 2 Highest-Rated Group 42 | . . 42 42 Highest-Rated Ally 31 | . . 31 31 Total Orders . | . . . . Ally Attacks 15 | . . . 15 Total Damage 244 | . . . 244 Kills 3 | . . . 3 Allies Corrupted . | . . . . Allies Melted . | . . . . Intel | -11 -10 -10 -10 ------- Run | Yrd Mat Min Sub Robot Analysis Total . | . . . . Derelict Logs Recovered 3 | . . 2 1 Drone Launches . | . . . . Drone Recoveries . | . . . . Exploration | -11 -10 -10 -10 ------------- Run | Yrd Mat Min Sub Turns Passed 4717 | 80 1629 992 2016 Spaces Moved 1703 | 45 575 378 705 Core 6 | 6 . . . Treads 330 | 31 299 . . Legs 1367 | 8 276 378 705 Wheels . | . . . . Hover . | . . . . Flight . | . . . . Fastest Speed 50 | 50 120 260 190 Average Speed 254 | 140 254 260 259 Slowest Speed 400 | 160 320 260 400 Overloaded Moves . | . . . . Propulsion Burnouts . | . . . . Robots Hopped . | . . . . Cave-ins Triggered . | . . . . Exploration Rate (%) 49 | 3 61 83 51 Regions Visited 3 Branch Regions 2 Pre-discovered Areas 1 | . . . 1 Known Exits Taken 2 | . 1 1 . Unknown Exits Taken 1 | 1 . . . Scrap Searched 6 | . . . 6 Spaces Dug . | . . . . Terrain Destroyed 46 | . 39 7 . Melee . | . . . . Projectile . | . . . . AOE 46 | . 39 7 . Terrain Rammed . | . . . . Walls Destroyed . | . . . . Machines Disabled . | . . . . Actions | -11 -10 -10 -10 --------- Run | Yrd Mat Min Sub Total 1931 | 58 669 386 818 Wait 25 | . . 7 18 Move 1700 | 44 574 377 705 Hop . | . . . . Pick Up 19 | 6 4 . 9 Fast Attach 13 | 4 6 . 3 Attach 4 | 1 . . 3 Detach . | . . . . Swap 14 | 3 5 . 6 Drop 11 | . 7 . 4 Fire 133 | . 72 2 59 Melee 11 | . . . 11 Ram . | . . . . Kick 1 | . 1 . . Crush . | . . . . Escape Stasis . | . . . . Rewire . | . . . . Trap . | . . . . Miscellaneous . | . . . . Route ------- -11/Scrapyard -10/Materials (discovered 3 exits: *Mat / *Min x2) -10/Mines (discovered 3 exits: *Mat x2 / *Sub) -10/Subcaves (discovered 1 exit: *Mat) History --------- Turn | Location | Event 10 | -11/Scrapyard | Discovered new exit (range 15) 81 | -11/Scrapyard | Entered Materials 81 | -10/Materials | Discovered new exit (range 15) 308 | -10/Materials | Build established: Mutant 513 | -10/Materials | Discovered new exit (range 16) 600 | -10/Materials | Identified exit to Mines 1382 | -10/Materials | Discovered new exit (range 13) 1710 | -10/Materials | Entered Mines 2063 | -10/Mines | Learned Materials stockpile data 2076 | -10/Mines | Discovered new exit (range 12) 2102 | -10/Mines | Identified exit to Materials 2299 | -10/Mines | Learned Materials stockpile data 2383 | -10/Mines | Discovered exit to Materials (range 10) 2383 | -10/Mines | Discovered new exit (range 9) 2401 | -10/Mines | Identified exit to Subcaves 2702 | -10/Mines | Entered Subcaves 2702 | -10/Subcaves | Accompanied by 2 allies 2707 | -10/Subcaves | Led the pair of lost Derelicts to an unsafe place 2722 | -10/Subcaves | Learned location of Zion (-7) 2722 | -10/Subcaves | Met a Zionite searching for "candidates" 3389 | -10/Subcaves | Lost 4 parts (1p1n2w) 3405 | -10/Subcaves | Shifting Twisted Machinery released Mak. Axe 3412 | -10/Subcaves | Shifting Twisted Machinery released Spk. Treads 3443 | -10/Subcaves | Core integrity fell below 50% 3761 | -10/Subcaves | Shifting Twisted Machinery released Sub. Power Source 3763 | -10/Subcaves | Shifting Twisted Machinery released Piercing Trap 3783 | -10/Subcaves | Discovered new exit (range 8) 3804 | -10/Subcaves | Identified exit to Materials 4197 | -10/Subcaves | Core integrity fell below 20% 4352 | -10/Subcaves | Learned Materials stockpile data 4718 | -10/Subcaves | Destroyed by LG-TMR(R) with Subdweller Beam Cannon Last Messages --------------- Found 24 Matter. Acquired 24 matter. Searching scrap... Found Scrap Shield. Found 15 Matter. Acquired 15 matter. Searching scrap... Found Sub. Machine Gun. Found 25 Matter. Acquired 25 matter. Dropped Sub. Power Source. Acquired derelict log, extracted data. Data stored: Materials stockpile data. Y-45 Defender destroyed. Acquired 42 matter. Searching scrap... Found Mak. Laser. Found 23 Matter. E0-SSU(R) destroyed. OS-5VB(R) destroyed. Map ----- +----------------------------------------------------+ | ??????????????????????????????????????????? | | ??????????????????????????????????????????? | | ??????????????????????????????????????????? | | ??????????????????????????????????????????? | | ??????????????????????????????????????????? | | ??????????????????????????????????????????? | | ??????????????????????????????????????????? | | ??????????????????????????????????????????? | | ??????????????????????????????????????????? | | ??????????????????????????????????????????? | | ??????????????????????????????????????????? | | ??????????????????????????????????????????? | | ??????????????????????????????????????????? | | ??????????????????????????????????????????? | | ??????????????????????????????????????????? | | ??????????????????????????????????????????? | | ???????????????#??????????????????????????? | | ???????????????# ?????????????????????????? | | ????????????????# ????????????????????????? | | ?????????????????" ##?????????????????????? | | ?????????????????? "#????????????????????? | | ???????????????????? " ?###???????????????? | | ????????????????????? ## #???????????????? | | ?????????????????????# ???????????????? | | ?????????????????????# # #???????????????? | | ?????????????????????# # @#???????????????? | | ????????????????????## # #???????????????? | | ???????????????????## ##!#???????????????? | | ?????????????????### ##R##??????????????? | | ?????????????????# &!&#??????????????? | | ?????????????????# #??????????????? | | ?????????????????# ##?????????????? | | ?????????????????## #?????????????? | | ??????????????????## #?????????????? | | ???????????????????## ####?????????????? | | ????????????????????## #????????????????? | | ?????????????????????## ##???????????????? | | ??????????????????????# ##??????????????? | | ??????????????????????# ##?????????????? | | ??????????????????????# #?????????????? | | ??????????????????????## #?????????????? | | ???????????????????????# #?????????????? | | ???????????????????????# ##?????????????? | | ??????????????????###### #??????????????? | | ??????????????????# #??????????????? | | ?????????????????## #??????????????? | | ????????????## ## #??????????????? | | ????????????# #??????????????? | | ????????? ## #??????????????? | | ??????????? ###??## ## #??????????????? | +----------------------------------------------------+ Best States ------------- Heat Dissipation 25 Energy Generation 15 Energy Capacity 250 Matter Stores 300 Matter Capacity 300 Sight Range 16 Terrain Scan Density 10 Evasion (%) 55 Recoil Reduction 2 Item Schematics ----------------- None Robot Schematics ------------------ None Fabricated ------------ Nothing Alien Tech Used ----------------- None Achievements -------------- None Challenges ------------ None Game ------ Seed FluxGunMapper Manual? 0 Play Time 00:23:22 Cumulative 12.7 hours Start 2024.04.07 @ 15:44:23 End 2024.04.07 @ 16:48:34 Sessions 1 Manual Loads 0 Difficulty Rogue Special Mode None Game No. 22 Rogue 22 Adventurer 0 Explorer 0 Win Type - Total 0 Types 0/0/0/0/0/0/0/0/0 Lore% 9 Gallery% 18 Achievement% 19 Wizard Run 0 Options --------- Layout 1 ASCII 0 Keyboard 0 Movement Numpad Keybinds 0 Fullscreen 1 Font 32/SmallcapsGlow Map View 50x35 Zoom Use 0% Tactical HUD 0 Map Filters NONE Filters NONE Steam 1 RUN: ff310d22-202b-47c2-98a2-f510461453b2